fUSD/lending_fUSD_20241110
["ID","MTS","AMOUNT","RATE_DAILY","PERIOD"]
[341900985,1731277832132,-1000.0,0.00014718,2]
[341900986,1731277832141,-241.18907924,0.00014718,2]
[341900987,1731277832151,-500.0,0.00014718,2]
[341900988,1731277832160,-500.0,0.00014718,2]
[341900989,1731277832169,-500.0,0.00014718,2]
[341900990,1731277832179,-500.0,0.00014718,2]
[341900991,1731277832189,-500.0,0.00014718,2]
[341900992,1731277832199,-500.0,0.00014718,2]
[341900993,1731277832208,-500.0,0.00014718,2]
[341900994,1731277832218,-210.96761463,0.00014718,2]
[341900995,1731277832228,-600.0,0.00014718,2]
[341900996,1731277832243,-500.0,0.00014718,2]
[341900997,1731277832253,-500.0,0.00014718,2]
[341900998,1731277832263,-500.0,0.00014718,2]
[341900999,1731277832272,-363.55,0.00014718,2]
[341901000,1731277832282,-500.0,0.00014718,2]
[341901001,1731277832292,-1398.62,0.00014718,2]
[341901002,1731277832302,-1398.62,0.00014718,2]
[341901003,1731277832311,-13865.96,0.00014718,2]
[341901004,1731277832321,-13865.96,0.00014718,2]
[341901005,1731277832330,-500.0,0.00014718,2]
[341901006,1731277832340,-500.0,0.00014718,2]
[341901007,1731277832350,-500.0,0.00014718,2]
[341901008,1731277832360,-500.0,0.00014718,2]
[341901009,1731277832370,-415.1,0.00014718,2]
[341901010,1731277832380,-233.62489,0.00014718,2]
[341901011,1731277832390,-1162.11,0.00014718,2]
[341901012,1731277832399,-1162.11,0.00014718,2]
[341901013,1731277832409,-865.3,0.00014718,2]
[341901014,1731277832419,-865.3,0.00014718,2]
[341901015,1731277832429,-500.0,0.00014718,2]
[341901016,1731277832439,-500.0,0.00014718,2]
[341901017,1731277832448,-10614.66,0.00014718,2]
[341901018,1731277832457,-10614.66,0.00014718,2]
[341901019,1731277832466,-282.664659,0.00014718,2]
[341901020,1731277832476,-500.0,0.00014718,2]
[341901021,1731277832488,-500.0,0.00014718,2]
[341901022,1731277832497,-500.0,0.00014718,2]
[341901023,1731277832506,-500.0,0.00014718,2]
[341901024,1731277832515,-1044.6,0.00014718,2]
[341901025,1731277832525,-284.84,0.00014718,2]
[341901026,1731277832535,-1044.6,0.00014718,2]
[341901027,1731277832548,-3209.75,0.00014718,2]
[341901028,1731277832558,-3209.75,0.00014718,2]
[341901029,1731277832567,-3209.75,0.00014718,2]
[341901030,1731277832577,-979.8,0.00014718,2]
[341901031,1731277832587,-3209.75,0.00014718,2]
[341901032,1731277832597,-979.8,0.00014718,2]
[341901033,1731277832607,-3209.75,0.00014718,2]
[341901034,1731277832617,-3209.75,0.00014718,2]
[341901035,1731277832628,-500.0,0.00014718,2]
[341901036,1731277832638,-500.0,0.00014718,2]
[341901037,1731277832647,-500.0,0.00014718,2]
[341901038,1731277832657,-500.0,0.00014718,2]
[341901039,1731277832666,-500.0,0.00014718,2]
[341901040,1731277832676,-500.0,0.00014718,2]
[341901041,1731277832685,-500.0,0.00014718,2]
[341901042,1731277832695,-500.0,0.00014718,2]
[341901043,1731277832704,-825.14,0.00014718,2]
[341901044,1731277832713,-825.14,0.00014718,2]
[341901045,1731277832723,-500.0,0.00014718,2]
[341901046,1731277832732,-8889.01,0.00014718,2]
[341901047,1731277832746,-8889.01,0.00014718,2]
[341901048,1731277832755,-8889.01,0.00014718,2]
[341901049,1731277832764,-8889.01,0.00014718,2]
[341901050,1731277832775,-8889.01,0.00014718,2]
[341901051,1731277832784,-8889.01,0.00014718,2]
[341901052,1731277832794,-500.0,0.00014718,2]
[341901053,1731277832804,-500.0,0.00014718,2]
[341901054,1731277832813,-500.0,0.00014718,2]
[341901055,1731277832823,-500.0,0.00014718,2]
[341901056,1731277832832,-500.0,0.00014718,2]
[341901057,1731277832842,-500.0,0.00014718,2]
[341901058,1731277832851,-500.0,0.00014718,2]
[341901059,1731277832862,-500.0,0.00014718,2]
[341901060,1731277832871,-500.0,0.00014718,2]
[341901061,1731277832881,-1096.77,0.00014718,2]
[341901062,1731277832891,-1096.77,0.00014718,2]
[341901063,1731277832900,-1096.77,0.00014718,2]
[341901064,1731277832910,-1096.77,0.00014718,2]
[341901065,1731277832920,-1096.77,0.00014718,2]
[341901066,1731277832929,-1096.77,0.00014718,2]
[341901067,1731277832938,-612.13,0.00014718,2]
[341901068,1731277832948,-612.13,0.00014718,2]
[341901069,1731277832958,-612.13,0.00014718,2]
[341901070,1731277832967,-612.13,0.00014718,2]
[341901071,1731277832977,-612.13,0.00014718,2]
[341901072,1731277832991,-612.13,0.00014718,2]
[341901073,1731277833001,-612.13,0.00014718,2]
[341901074,1731277833011,-500.0,0.00014718,2]
[341901075,1731277833021,-500.0,0.00014718,2]
[341901077,1731277833031,-500.0,0.00014718,2]
[341901078,1731277833041,-500.0,0.00014718,2]
[341901079,1731277833051,-500.0,0.00014718,2]
[341901080,1731277833061,-500.0,0.00014718,2]
[341901081,1731277833071,-500.0,0.00014718,2]
[341901082,1731277833081,-500.0,0.00014718,2]
[341901083,1731277833091,-500.0,0.00014718,2]
[341901084,1731277833101,-500.0,0.00014718,2]
[341901085,1731277833111,-500.0,0.00014718,2]
[341901086,1731277833121,-500.0,0.00014718,2]
[341901087,1731277833131,-500.0,0.00014718,2]
[341901088,1731277833141,-500.0,0.00014718,2]
[341901089,1731277833150,-500.0,0.00014718,2]
[341901090,1731277833160,-2744.18,0.00014718,2]
[341901091,1731277833170,-2744.18,0.00014718,2]
[341901092,1731277833180,-2744.18,0.00014718,2]
[341901093,1731277833191,-2744.18,0.00014718,2]
[341901094,1731277833201,-2744.18,0.00014718,2]
[341901095,1731277833211,-2744.18,0.00014718,2]
[341901096,1731277833220,-2744.18,0.00014718,2]
[341901097,1731277833231,-1857.24,0.00014718,2]
[341901098,1731277833245,-1857.24,0.00014718,2]
[341901099,1731277833255,-10049.06,0.00014718,2]
[341901100,1731277833265,-10049.06,0.00014718,2]
[341901101,1731277833275,-10049.06,0.00014718,2]
[341901102,1731277833285,-10049.06,0.00014718,2]
[341901103,1731277833295,-11038.89,0.00014718,2]
[341901104,1731277833305,-10049.06,0.00014718,2]
[341901105,1731277833315,-11038.89,0.00014718,2]
[341901106,1731277833324,-10049.06,0.00014718,2]
[341901107,1731277833334,-10049.06,0.00014718,2]
[341901108,1731277833344,-614.53,0.00014718,2]
[341901109,1731277833353,-614.53,0.00014718,2]
[341901110,1731277833363,-614.53,0.00014718,2]
[341901111,1731277833373,-8139.44,0.00014718,2]
[341901112,1731277833383,-614.53,0.00014718,2]
[341901113,1731277833393,-8139.44,0.00014718,2]
[341901114,1731277833402,-614.53,0.00014718,2]
[341901115,1731277833412,-614.53,0.00014718,2]
[341901116,1731277833422,-614.53,0.00014718,2]
[341901117,1731277833434,-500.0,0.00014718,2]
[341901118,1731277833444,-500.0,0.00014718,2]
[341901119,1731277833454,-610.07,0.00014718,2]
[341901120,1731277833463,-610.07,0.00014718,2]
[341901121,1731277833474,-610.07,0.00014718,2]
[341901122,1731277833484,-610.07,0.00014718,2]
[341901123,1731277833497,-610.07,0.00014718,2]
[341901124,1731277833506,-610.07,0.00014718,2]
[341901125,1731277833515,-610.07,0.00014718,2]
[341901126,1731277833525,-500.0,0.00014718,2]
[341901127,1731277833534,-500.0,0.00014718,2]
[341901128,1731277833544,-500.0,0.00014718,2]
[341901129,1731277833557,-500.0,0.00014718,2]
[341901130,1731277833567,-500.0,0.00014718,2]
[341901131,1731277833577,-500.0,0.00014718,2]
[341901132,1731277833587,-244.87365123,0.00014718,2]
[341901133,1731277833943,-3297.78634877,0.00014718,2]
[341901134,1731277833953,-3542.66,0.00014718,2]
[341901135,1731277833962,-814.47,0.00014718,2]
[341901136,1731277833972,-814.47,0.00014718,2]
[341901137,1731277833983,-814.47,0.00014718,2]
[341901138,1731277833997,-814.47,0.00014718,2]
[341901139,1731277834007,-500.0,0.00014718,2]
[341901140,1731277834017,-500.0,0.00014718,2]
[341901141,1731277834027,-500.0,0.00014718,2]
[341901142,1731277834037,-814.47,0.00014718,2]
[341901143,1731277834047,-814.47,0.00014718,2]
[341901144,1731277834057,-500.0,0.00014718,2]
[341901145,1731277834066,-500.0,0.00014718,2]
[341901146,1731277834076,-500.0,0.00014718,2]
[341901147,1731277834085,-500.0,0.00014718,2]
[341901148,1731277834095,-500.0,0.00014718,2]
[341901149,1731277834104,-500.0,0.00014718,2]
[341901150,1731277834114,-500.0,0.00014718,2]
[341901151,1731277834123,-536.49,0.00014718,2]
[341901152,1731277834133,-536.49,0.00014718,2]
[341901153,1731277834143,-536.49,0.00014718,2]
[341901154,1731277834152,-536.49,0.00014718,2]
[341901155,1731277834162,-536.49,0.00014718,2]
[341901156,1731277834171,-536.49,0.00014718,2]
[341901157,1731277834180,-536.49,0.00014718,2]
[341901158,1731277834190,-1474.27,0.00014718,2]
[341901159,1731277834199,-1474.27,0.00014718,2]
[341901160,1731277834209,-1474.27,0.00014718,2]
[341901161,1731277834218,-1474.27,0.00014718,2]
[341901162,1731277834228,-1474.27,0.00014718,2]
[341901163,1731277834242,-1474.27,0.00014718,2]
[341901164,1731277834251,-343.12,0.00014718,2]
[341901165,1731277834261,-8633.46,0.00014718,2]
[341901166,1731277834271,-8633.46,0.00014718,2]
[341901167,1731277834281,-435.8,0.00014718,2]
[341901168,1731277834291,-791.14,0.00014718,2]
[341901169,1731277834301,-791.14,0.00014718,2]
[341901170,1731277834311,-791.14,0.00014718,2]
[341901171,1731277834321,-791.14,0.00014718,2]
[341901172,1731277834330,-12980.7554553,0.00014719,2]
[341901173,1731277834341,-500.0,0.00014719,2]
[341901174,1731277834350,-500.0,0.00014719,2]
[341901175,1731277834360,-500.0,0.00014719,2]
[341901176,1731277834369,-534.66,0.00014719,2]
[341901177,1731277834379,-500.0,0.00014719,2]
[341901178,1731277834388,-500.0,0.00014719,2]
[341901179,1731277834398,-500.0,0.00014719,2]
[341901180,1731277834408,-500.0,0.00014719,2]
[341901181,1731277834417,-500.0,0.00014719,2]
[341901182,1731277834427,-500.0,0.00014719,2]
[341901183,1731277834436,-170.87320381,0.00014719,2]
[341901184,1731277834463,-329.12679619,0.00014719,2]
[341901185,1731277834475,-312.49872744,0.00014719,2]
[341901186,1731277834493,-187.50127256,0.00014719,2]
[341901187,1731277834502,-500.0,0.00014719,2]
[341901188,1731277834512,-500.0,0.00014719,2]
[341901189,1731277834522,-500.0,0.00014719,2]
[341901190,1731277834531,-500.0,0.00014719,2]
[341901191,1731277834543,-500.0,0.00014719,2]
[341901192,1731277834553,-500.0,0.00014719,2]
[341901193,1731277834562,-500.0,0.00014719,2]
[341901194,1731277834571,-500.0,0.00014719,2]
[341901195,1731277834583,-500.0,0.00014719,2]
[341901196,1731277834592,-500.0,0.00014719,2]
[341901197,1731277834602,-500.0,0.00014719,2]
[341901198,1731277834611,-500.0,0.00014719,2]
[341901199,1731277834623,-500.0,0.00014719,2]
[341901200,1731277834635,-500.0,0.00014719,2]
[341901201,1731277834645,-500.0,0.00014719,2]
[341901202,1731277834655,-500.0,0.00014719,2]
[341901203,1731277834665,-500.0,0.00014719,2]
[341901204,1731277834674,-500.0,0.00014719,2]
[341901205,1731277834683,-500.0,0.00014719,2]
[341901206,1731277834692,-500.0,0.00014719,2]
[341901207,1731277834702,-500.0,0.00014719,2]
[341901208,1731277834711,-250.0,0.00014719,2]
[341901209,1731277834720,-608.03099715,0.00014719,2]
[341901210,1731277834729,-500.0,0.00014719,2]
[341901211,1731277834743,-500.0,0.00014719,2]
[341901212,1731277834753,-500.0,0.00014719,2]
[341901213,1731277834762,-500.0,0.00014719,2]
[341901214,1731277834772,-500.0,0.00014719,2]
[341901215,1731277834781,-500.0,0.00014719,2]
[341901216,1731277834790,-500.0,0.00014719,2]
[341901217,1731277834800,-500.0,0.00014719,2]
[341901218,1731277834809,-500.0,0.00014719,2]
[341901219,1731277834819,-500.0,0.00014719,2]
[341901220,1731277834829,-500.0,0.00014719,2]
[341901221,1731277834838,-500.0,0.00014719,2]
[341901222,1731277834847,-500.0,0.00014719,2]
[341901223,1731277834857,-500.0,0.00014719,2]
[341901224,1731277834865,-607.25,0.00014719,2]
[341901225,1731277834874,-659.92,0.00014719,2]
[341901226,1731277834883,-500.0,0.00014719,2]
[341901227,1731277834892,-500.0,0.00014719,2]
[341901228,1731277834901,-500.0,0.00014719,2]
[341901229,1731277834909,-500.0,0.00014719,2]
[341901230,1731277834919,-740.11,0.00014719,2]
[341901231,1731277834927,-500.0,0.00014719,2]
[341901232,1731277834937,-500.0,0.00014719,2]
[341901233,1731277834946,-500.0,0.00014719,2]
[341901234,1731277834957,-500.0,0.00014719,2]
[341901235,1731277834970,-518.79703508,0.00014719,2]
[341901236,1731277834979,-500.0,0.00014719,2]
[341901237,1731277834989,-500.0,0.00014719,2]
[341901238,1731277834999,-500.0,0.00014719,2]
[341901239,1731277835009,-500.0,0.00014719,2]
[341901240,1731277835019,-500.0,0.00014719,2]
[341901241,1731277835028,-500.0,0.00014719,2]
[341901242,1731277835038,-500.0,0.00014719,2]
[341901243,1731277835048,-500.0,0.00014719,2]
[341901244,1731277835059,-500.0,0.00014719,2]
[341901245,1731277835068,-500.0,0.00014719,2]
[341901246,1731277835078,-500.0,0.00014719,2]
[341901247,1731277835087,-545.59753308,0.00014719,2]
[341901248,1731277835096,-500.0,0.00014719,2]
[341901249,1731277835106,-500.0,0.00014719,2]
[341901250,1731277835115,-413.19940644,0.00014719,2]
[341901252,1731277835124,-500.0,0.00014719,2]
[341901254,1731277835133,-649.22,0.00014719,2]
[341901256,1731277835142,-500.42217817,0.00014719,2]
[341901258,1731277835151,-1207.49,0.00014719,2]
[341901260,1731277835160,-500.0,0.00014719,2]
[341901262,1731277835169,-500.0,0.00014719,2]
[341901264,1731277835179,-500.0,0.00014719,2]
[341901266,1731277835188,-596.29,0.00014719,2]
[341901268,1731277835198,-500.0,0.00014719,2]
[341901269,1731277835207,-537.78258356,0.00014719,2]
[341901271,1731277835217,-585.22,0.00014719,2]
[341901274,1731277835227,-1320.36,0.00014719,2]
[341901275,1731277835236,-500.0,0.00014719,2]
[341901277,1731277835247,-757.9,0.00014719,2]
[341901279,1731277835256,-500.0,0.00014719,2]
[341901281,1731277835265,-633.41,0.00014719,2]
[341901283,1731277835275,-892.9,0.00014719,2]
[341901285,1731277835284,-500.0,0.00014719,2]
[341901287,1731277835293,-500.0,0.00014719,2]
[341901289,1731277835302,-500.0,0.00014719,2]
[341901292,1731277835312,-500.0,0.00014719,2]
[341901293,1731277835321,-500.0,0.00014719,2]
[341901295,1731277835331,-500.0,0.00014719,2]
[341901297,1731277835341,-500.0,0.00014719,2]
[341901299,1731277835350,-500.0,0.00014719,2]
[341901301,1731277835360,-500.0,0.00014719,2]
[341901304,1731277835369,-500.0,0.00014719,2]
[341901305,1731277835378,-500.0,0.00014719,2]
[341901308,1731277835388,-500.0,0.00014719,2]
[341901309,1731277835397,-500.0,0.00014719,2]
[341901311,1731277835406,-500.0,0.00014719,2]
[341901336,1731277835632,-500.0,0.00014719,2]
[341901338,1731277835642,-500.0,0.00014719,2]
[341901340,1731277835651,-500.0,0.00014719,2]
[341901342,1731277835660,-500.0,0.00014719,2]
[341901344,1731277835669,-500.0,0.00014719,2]
[341901346,1731277835678,-500.0,0.00014719,2]
[341901348,1731277835688,-500.0,0.00014719,2]
[341901350,1731277835697,-500.0,0.00014719,2]
[341901352,1731277835706,-353.15,0.00014719,2]
[341901354,1731277835715,-500.0,0.00014719,2]
[341901356,1731277835724,-500.0,0.00014719,2]
[341901358,1731277835733,-6917.54140927,0.00014719,2]
[341901360,1731277835745,-500.0,0.00014719,2]
[341901362,1731277835754,-589.06,0.00014719,2]
[341901364,1731277835763,-500.0,0.00014719,2]
[341901366,1731277835772,-134.44758469,0.00014719,2]
[341901370,1731277835804,-471.55435349,0.00014718,2]
[341901374,1731277835833,-319.58564651,0.00014718,2]
[341901376,1731277835842,-294.70476073,0.00014719,2]
[341901379,1731277835853,-70.84765458,0.00014719,2]
[341901380,1731277835862,-500.0,0.00014719,2]
[341901381,1731277835871,-500.0,0.00014719,2]
[341901382,1731277835879,-500.0,0.00014719,2]
[341901383,1731277835888,-500.0,0.00014719,2]
[341901384,1731277835897,-310.17319296,0.00014719,2]
[341901385,1731277835907,-189.82680704,0.00014719,2]
[341901386,1731277835916,-260.21026596,0.00014719,2]
[341901387,1731277835961,-239.78973404,0.00014719,2]
[341901388,1731277835970,-500.0,0.00014719,2]
[341901389,1731277835979,-476.69245377,0.00014719,2]
[341901415,1731277837789,-308.55144336,0.0001462,2]
[341901416,1731277837799,-405.5333686,0.00014718,2]
[341901417,1731277837810,-385.6066314,0.00014718,2]
[341901419,1731277837819,-11.7177206,0.00014719,2]
[341901420,1731277837916,-2439.73256875,0.00014719,2]
[341901421,1731277837951,-853.17782764,0.00014719,2]
[341901422,1731277837963,-2434.8578245,0.00014719,2]
[341901423,1731277838211,-3975.0,0.00014719,2]
[341901424,1731277838222,-4079.5227,0.00014719,2]
[341901425,1731277838234,-5859.98649765,0.00014719,2]
[341901426,1731277838327,-278901.83371087,0.00014719,2]
[341901503,1731277839781,-332.38,0.00014717,2]
[341901504,1731277839790,-152.57,0.00014717,2]
[341901505,1731277839822,-446.5,0.00014717,2]
[341901506,1731277839831,-98.19966678,0.00014718,2]
[341901507,1731277839869,-401.80033322,0.00014718,2]
[341901508,1731277839879,-500.0,0.00014718,2]
[341901509,1731277839888,-500.0,0.00014718,2]
[341901510,1731277839897,-2716.32303938,0.00014719,2]
[341901511,1731277839908,-4859.1766274,0.00014719,2]
[341901512,1731277839919,-1644.63211792,0.00014719,2]
[341901513,1731277840040,-599.07,0.00014718,2]
[341901514,1731277840050,-31533.67228014,0.00014719,2]
[341901515,1731277840076,-534.30351274,0.00014719,2]
[341901516,1731277840113,-1762.82652865,0.00014719,2]
[341901517,1731277840124,-13697.03201765,0.00014719,2]
[341901518,1731277840135,-1621.61641654,0.00014719,2]
[341901734,1731277842905,-500.0,0.00014717,2]
[341901735,1731277842916,-500.0,0.00014718,2]
[341901736,1731277842927,-599.07,0.00014718,2]
[341901737,1731277842935,-500.0,0.00014718,2]
[341901738,1731277842946,-599.07,0.00014718,2]
[341901739,1731277842955,-500.0,0.00014718,2]
[341901740,1731277842964,-599.07,0.00014718,2]
[341901741,1731277842973,-500.0,0.00014718,2]
[341901742,1731277842983,-599.07,0.00014718,2]
[341901743,1731277842994,-599.07,0.00014718,2]
[341901744,1731277843004,-500.0,0.00014718,2]
[341901745,1731277843013,-599.07,0.00014718,2]
[341901746,1731277843022,-500.0,0.00014718,2]
[341901747,1731277843032,-599.07,0.00014718,2]
[341901748,1731277843041,-500.0,0.00014718,2]
[341901749,1731277843051,-500.0,0.00014718,2]
[341901750,1731277843060,-422.51,0.00014718,2]
[341901751,1731277843069,-553.0996,0.00014719,2]
[341901752,1731277843110,-21320.433186,0.00014719,2]
[341901753,1731277843123,-32149.9518133,0.00014719,2]
[341901754,1731277843136,-40636.78569626,0.00014719,2]
[341901755,1731277843147,-482.45718603,0.00014719,2]
[341901756,1731277843163,-21385.5911,0.00014719,2]
[341901759,1731277843471,-1336.84719301,0.00014719,2]
[341901768,1731277843528,-12194.51576939,0.00014719,2]
[341901770,1731277843543,-25223.54789101,0.00014719,2]
[341901773,1731277843552,-12980.7554553,0.00014719,2]
[341901775,1731277843561,-23.30754623,0.00014719,2]
[341901777,1731277843570,-567.99,0.00014719,2]
[341901779,1731277843579,-500.0,0.00014719,2]
[341901781,1731277843591,-229.27,0.00014719,2]
[341901783,1731277843601,-500.0,0.00014719,2]
[341901785,1731277843610,-408.46266513,0.00014719,2]
[341901889,1731277845801,-512.38,0.00014717,2]
[341901891,1731277845811,-512.38,0.00014718,2]
[341901893,1731277845820,-91.53733487,0.00014719,2]
[341901895,1731277845829,-500.0,0.00014719,2]
[341901897,1731277845839,-500.0,0.00014719,2]
[341901899,1731277845848,-500.0,0.00014719,2]
[341901900,1731277845857,-500.0,0.00014719,2]
[341901902,1731277845866,-500.0,0.00014719,2]
[341901904,1731277845875,-500.0,0.00014719,2]
[341901906,1731277845884,-500.0,0.00014719,2]
[341901908,1731277845894,-500.0,0.00014719,2]
[341901910,1731277845903,-500.0,0.00014719,2]
[341901912,1731277845912,-500.0,0.00014719,2]
[341901914,1731277845921,-500.0,0.00014719,2]
[341901915,1731277845930,-500.0,0.00014719,2]
[341901916,1731277845939,-500.0,0.00014719,2]
[341901917,1731277845948,-500.0,0.00014719,2]
[341901918,1731277845957,-500.0,0.00014719,2]
[341901919,1731277845966,-500.0,0.00014719,2]
[341901920,1731277845975,-200.0,0.00014719,2]
[341901921,1731277845983,-500.0,0.00014719,2]
[341901922,1731277845992,-549.25,0.00014719,2]
[341901923,1731277846004,-500.0,0.00014719,2]
[341901924,1731277846013,-517.76,0.00014719,2]
[341901925,1731277846022,-517.76,0.00014719,2]
[341901926,1731277846031,-517.76,0.00014719,2]
[341901927,1731277846040,-517.76,0.00014719,2]
[341901928,1731277846049,-517.76,0.00014719,2]
[341901929,1731277846059,-517.76,0.00014719,2]
[341901930,1731277846068,-765.39,0.00014719,2]
[341901931,1731277846077,-765.39,0.00014719,2]
[341901932,1731277846086,-765.39,0.00014719,2]
[341901933,1731277846096,-765.39,0.00014719,2]
[341901934,1731277846106,-765.39,0.00014719,2]
[341901935,1731277846116,-765.39,0.00014719,2]
[341901936,1731277846126,-1201.03,0.00014719,2]
[341901937,1731277846136,-1201.03,0.00014719,2]
[341901938,1731277846146,-1201.03,0.00014719,2]
[341901939,1731277846156,-1201.03,0.00014719,2]
[341901940,1731277846169,-1201.03,0.00014719,2]
[341901941,1731277846179,-1201.03,0.00014719,2]
[341901942,1731277846190,-500.0,0.00014719,2]
[341901943,1731277846200,-579.54,0.00014719,2]
[341901944,1731277846210,-500.0,0.00014719,2]
[341901945,1731277846220,-500.0,0.00014719,2]
[341901946,1731277846230,-500.0,0.00014719,2]
[341901947,1731277846240,-500.0,0.00014719,2]
[341901948,1731277846253,-500.0,0.00014719,2]
[341901949,1731277846263,-500.0,0.00014719,2]
[341901950,1731277846273,-500.0,0.00014719,2]
[341901951,1731277846283,-500.0,0.00014719,2]
[341901952,1731277846293,-500.0,0.00014719,2]
[341901953,1731277846304,-500.0,0.00014719,2]
[341901954,1731277846314,-689.82,0.00014719,2]
[341901955,1731277846324,-689.82,0.00014719,2]
[341901956,1731277846334,-689.82,0.00014719,2]
[341901957,1731277846343,-500.0,0.00014719,2]
[341901958,1731277846353,-151.0,0.00014719,2]
[341901959,1731277846363,-151.0,0.00014719,2]
[341901960,1731277846372,-342.75168645,0.00014719,2]
[341901961,1731277846383,-4989.3578,0.00014719,2]
[341901962,1731277846393,-500.0,0.00014719,2]
[341901963,1731277846402,-500.0,0.00014719,2]
[341901964,1731277846412,-500.0,0.00014719,2]
[341901965,1731277846421,-500.0,0.00014719,2]
[341901966,1731277846431,-525.52,0.00014719,2]
[341901967,1731277846441,-4989.3578,0.00014719,2]
[341901968,1731277846450,-525.52,0.00014719,2]
[341901969,1731277846460,-525.52,0.00014719,2]
[341901970,1731277846470,-500.0,0.00014719,2]
[341901971,1731277846480,-500.0,0.00014719,2]
[341901972,1731277846490,-500.0,0.00014719,2]
[341901973,1731277846501,-500.0,0.00014719,2]
[341901975,1731277846514,-500.0,0.00014719,2]
[341901977,1731277846523,-500.0,0.00014719,2]
[341901978,1731277846533,-1414.65,0.00014719,2]
[341901980,1731277846543,-1414.65,0.00014719,2]
[341901982,1731277846556,-1414.65,0.00014719,2]
[341901985,1731277846566,-1414.65,0.00014719,2]
[341901986,1731277846575,-1414.65,0.00014719,2]
[341901988,1731277846585,-1414.65,0.00014719,2]
[341901991,1731277846594,-500.0,0.00014719,2]
[341901992,1731277846604,-224.95569,0.00014719,2]
[341901995,1731277846614,-224.95569,0.00014719,2]
[341901996,1731277846623,-371.05399868,0.00014719,2]
[341901999,1731277846640,-489.41600132,0.00014719,2]
[341902001,1731277846650,-142.17385966,0.00014719,2]
[341902003,1731277846662,-718.29614034,0.00014719,2]
[341902005,1731277846673,-860.47,0.00014719,2]
[341902007,1731277846683,-500.0,0.00014719,2]
[341902009,1731277846693,-500.0,0.00014719,2]
[341902011,1731277846702,-500.0,0.00014719,2]
[341902013,1731277846712,-500.0,0.00014719,2]
[341902015,1731277846721,-500.0,0.00014719,2]
[341902017,1731277846731,-245.77899234,0.00014719,2]
[341902019,1731277846741,-151.0,0.00014719,2]
[341902021,1731277846753,-500.0,0.00014719,2]
[341902023,1731277846764,-500.0,0.00014719,2]
[341902025,1731277846774,-500.0,0.00014719,2]
[341902027,1731277846784,-547.9,0.00014719,2]
[341902029,1731277846794,-547.9,0.00014719,2]
[341902031,1731277846804,-547.9,0.00014719,2]
[341902033,1731277846814,-2241.788857,0.00014719,2]
[341902036,1731277846828,-1794.31739334,0.00014719,2]
[341902038,1731277846840,-4149.83385766,0.00014719,2]
[341902040,1731277846850,-3985.43845266,0.00014719,2]
[341902042,1731277846862,-3217.19999997,0.00014719,2]
[341902045,1731277846874,-983.30165537,0.00014719,2]
[341902047,1731277846885,-1574.12,0.00014719,2]
[341902049,1731277846894,-273.47295909,0.00014719,2]
[341902055,1731277846942,-580.4400015,0.00014719,2]
[341902058,1731277846963,-720.20703941,0.00014719,2]
[341902059,1731277846973,-1574.12,0.00014719,2]
[341902061,1731277846983,-891.96709634,0.00014719,2]